{"text_format":"1","workbook":"xlsx","n_sheets":3,"sheets":["Variabelliste - informasjon","Variabelliste - Velg Variabler","Merknader"],"not_rendered":{"charts":0,"images":1,"macros":1,"external_links":0,"defined_names":0,"comments":1,"pivot_tables":0},"unopened":[],"bounds":{"document_bytes":16777216,"sheet_cells":100000,"rows_first":2000,"rows_last":500,"rows_between":2000,"halvings":0,"cell_chars":16384,"cell_head_chars":4096},"cells_cut":0,"cells_raw":0,"read":"whole","date_system":"1900"}

{"sheet":"Variabelliste - informasjon","index":0,"n_rows":39,"n_cols":5,"rows_kept":39,"cut":false,"hidden":false,"merged":[[34,1,34,2],[0,0,1,1],[26,2,27,2],[26,3,27,4],[28,2,29,2],[28,3,29,4],[30,2,31,2],[18,2,19,2],[20,2,21,2],[22,2,23,2],[24,2,25,2]]}
[null,null,"VARIABELLISTE - INFORMASJON"]
[null,null,"Utdanning"]
[]
[]
[null,"Statistikkområde:","Utdanning på www.ssb.no"]
[null,"Dokumentasjon:","Nasjonal utdanningsdatabase NUDB (Notat 2007/54)"]
[null,null,"Tema- og variabelliste for NUDB, med kodelister"]
[null,null,"Norsk standard for utdanningsgruppering"]
[null,"Omfang:","Personer bosatt i Norge, fra og med 1970."]
[null,"Referansetidspunkt:","Referansetidspunkt og -periode for utdanningsopplysninger følger skoleåret og er per 1. oktober og perioden 1. oktober - 30. september. For et skoleår vil angivelse av årgang, f.eks. 2015, referere til siste kalenderår i skoleåret, dvs. 2014/2015. Forløpsdata har samme referanseperiode som skoleåret."]
[null,"Seneste oppdatering:","Data for statistikkåret publiseres i forbindelse med frigivning av offisielle utdanningsstatistikker."]
[null,"Enhet:","Person"]
[null,"Annen informasjon fra SSB:","Se fanen \"Merknader\" for nærmere detaljer relevante for valg av datauttrekk."]
[null,null,"Individbaserte utdanningsopplysninger omfatter personer som har fullført grunnskoleutdanning, eller er i gang med utdanning på høyere nivå enn grunnskole. Unntaket er resultater fra nasjonale prøver som også finnes for elever som ikke har fullført grunnskole, men som har tatt nasjonale prøver. Mer om definisjoner i dokumentasjonen av NUDB, se lenke over.\n                                                                                                                                                                  \nVariabler om avlagte studiepoeng er komplett fra og med studieåret 2004/2005. \n                                                                                                                                                                                                                                                                                                                                                                                                         Fra 2014 er utdanningsnivå for innvandrere i publisert statistikk supplert med imputerte verdier, se nærmere informasjon på statistikksidene. Mikrodata som bestilles her inneholder de opprinnelige verdiene, og utdanningsnivå basert på dette grunnlaget vil derfor ikke samsvare med publisert statistikk.\n\nI variabellista gis det anledning til å bestille utdanningsnivå (første siffer i Norsk standard for utdanningsgruppering (NUS)), samt gruppering av utdanningsnivå."]
[null,null,"NB!: Enkelte variabler er også tilgjengelig på microdata.no.  Denne tjenesten er åpen for forskere, PhD- og masterstudenter tilknyttet godkjente forskningsinstitusjoner: https://microdata.no/ "]
[]
[]
[null,"OPPGI INFORMASJON:"]
[null,"Dato for innsending av bestilling:",null,"*"]
[]
[null,"Prosjektnavn:",null,"*"]
[]
[null,"Institusjon:",null,"*"]
[]
[null,"Utfylt av:",null,"*"]
[]
[null,"SSB saksnummer:",null,"Oppgis hvis du har mottatt det fra SSB."]
[]
[null,"Angi om databestillingen inkluderer",null,"Nyere data kan foreligge på avtaletidspunktet."]
[null,"siste tilgjengelige årganger (Ja/Nei):"]
[null,"Ev kommentarer til SSB:"]
[]
[null,null,"* Obligatoriske felt"]
[]
[null,"Gå til variabelliste og velg variabler"]
[]
[]
[]
["Sist oppdatert 24. juni 2024",null,null,null,"Statistisk sentralbyrå"]

{"sheet":"Variabelliste - Velg Variabler","index":1,"n_rows":354,"n_cols":12,"rows_kept":354,"cut":false,"hidden":false,"merged":[[189,4,231,5],[5,7,6,7],[5,3,6,3],[0,0,1,0],[5,0,6,0],[5,1,5,2],[5,6,6,6],[21,6,35,6],[40,6,131,6],[193,1,193,2],[200,1,200,2],[188,1,188,2],[189,1,189,2],[190,1,190,2],[191,1,191,2],[192,1,192,2],[338,6,351,6],[139,6,144,6],[147,6,150,6],[247,6,255,6],[259,6,308,6],[312,6,320,6],[324,6,334,6],[154,6,185,6],[189,6,231,6],[194,1,194,2],[195,1,195,2],[196,1,196,2],[197,1,197,2],[198,1,198,2],[199,1,199,2],[210,1,210,2],[211,1,211,2],[212,1,212,2],[213,1,213,2],[201,1,201,2],[202,1,202,2],[203,1,203,2],[204,1,204,2],[205,1,205,2],[206,1,206,2],[207,1,207,2],[208,1,208,2],[216,1,216,2],[217,1,217,2],[218,1,218,2],[209,1,209,2],[229,1,229,2],[220,1,220,2],[221,1,221,2],[222,1,222,2],[223,1,223,2],[214,1,214,2],[215,1,215,2],[219,1,219,2],[230,1,230,2],[231,1,231,2],[224,1,224,2],[225,1,225,2],[226,1,226,2],[227,1,227,2],[228,1,228,2]]}
[null,"VARIABELLISTE - Velg Variabler"]
[null,"Utdanning"]
[]
[null,null,null,"Intern informasjon"]
["Datovariabler som inneholder full fødsels- og dødsdato vil bli gitt som måned og år hvis ikke prosjektet har særskilt begrunnet i søknaden at det trenger full fødsels- eller dødsdato."]
["Variabelbeskrivelse","Oppgi perioden du ønsker data for",null,"Variabelnavn",null,null,"Definisjoner","Gjeldende\nkodeliste"]
[null,"Fra år:","Til år:",null,"Tilgjengelig fra år","Tilgjengelig til år",null,null,"Tabellnavn som leveres ","Finnes på microdata.no","Førstelinje","Kommentarer"]
[]
["Løpenummer person",null,null,"wxx_xxxx_lopenr_person"]
[]
["MERK: Oppgi først årgangene øverst i tabellene. Obligatoriske variabler for tabelen blir automatisk lagt til. Oppgi deretter årgangene for variablene du trenger utover disse."]
["ÅRLIG SITUASJONSOPPLYSNING (per 1.10.)\nBefolkningens utdanningsnivå",null,null,null,null,null,null,null,"wxx_xxxx_bu_utd"]
["Personens høyeste utdanningsnivå (Koden NUS2000),(1970, deretter årlig fra og med 1980) ",null,null,"bu_åååå",1970,2023,"kodeliste",null,null,"microdata.no","Sjekk"]
["Personens høyeste utdanningsnivå - nivå (første siffer i NUS2000)",null,null,"bu_åååå, kun første siffer nivå",1970,2023,"definisjon"]
["Personens høyeste utdanningsnivå - seks grupper (grunnskole, videregående utdanning, fagskole, universitet og høyskole: kort og lang, uoppgitt/ingen utdanning)",null,null,"bu_åååå, nivå gruppert",1970,2023,"definisjon","kodeliste"]
[]
["Igangværende utdanning"]
["Elever og studenter i utdanning (Koden NUS2000), årlig per 1.10. ",null,null,"igang_åååå",1970,2023,"kodeliste"]
[]
["*Skriv ønskede årganger i første ruten for å velge obligatoriske variabler"]
["DEMOGRAFISKE OPPLYSNINGER OG UTDANNINGSNIVÅ, FORLØP (F_UTD_DEMOGRAFI)",null,null,null,null,null,null,null,"wxx_xxxx_f_utd_demografi"]
["Registreringsdato",{"$f":"IF(B21<>\"\",B21,\"\")","v":""},{"$f":"IF(C21<>\"\",C21,\"\")","v":""},"REGDATO",1970,2023,"Dokumentasjon\nfor\nalle variabler i\ntabellen\nF_UTD_DEMOGRAFI"]
["Hendelsekode",{"$f":"IF(B21<>\"\",B21,\"\")","v":""},{"$f":"IF(C21<>\"\",C21,\"\")","v":""},"KODE",1970,2023]
["Tillfellets tilgangsdato",{"$f":"IF(B21<>\"\",B21,\"\")","v":""},{"$f":"IF(C21<>\"\",C21,\"\")","v":""},"TILGDATO",1970,2023]
["Tilfellets avgangsdato",{"$f":"IF(B21<>\"\",B21,\"\")","v":""},{"$f":"IF(C21<>\"\",C21,\"\")","v":""},"AVGDATO",1970,2023]
["Dato som benyttes for å effektivisere uttak av tverrsnitt",{"$f":"IF(B21<>\"\",B21,\"\")","v":""},{"$f":"IF(C21<>\"\",C21,\"\")","v":""},"TOMDATO",1970,2023]
["Regtom (sluttdato for endringsrecord, viser varighet for den enkelte endringsrecord) ",{"$f":"IF(B21<>\"\",B21,\"\")","v":""},{"$f":"IF(C21<>\"\",C21,\"\")","v":""},"REGTOM",1970,2023]
["Bostedskommune, per 1. oktober ",null,null,"KOMMNR",1970,2023]
["Bostedskommune, per 1. oktober-datovariabel",null,null,"KOMMNRDATO",1970,2023]
["NUS-kode for høyeste utdanning",null,null,"BU",1970,2023,null,null,null,"microdata.no"]
["NUS-kode for høyeste utdanning-datovariabel",null,null,"BUDATO",1970,2023]
["Klassetrinn for høyeste utdanning",null,null,"BU_KLTRINN",1970,2023]
["Klassetrinn for høyeste utdanning-datovariabel",null,null,"BU_KLTRINNDATO",1970,2023]
["Eksakt dato for høyeste utdanning",{"$f":"IF(B21<>\"\",B21,\"\")","v":""},{"$f":"IF(C21<>\"\",C21,\"\")","v":""},"BU_REGDATO",1970,2023]
["BU Løpenummer kurs (Tilsvarer \"Løpenummer Kurs\" i F_UTD_KURS)",null,null,"BU_LOEPENR_KURS",1970,2023,null,null,null,null,null,"AVIDENTIFISERES. Skal matche LOEPENR_KURS i F_UTD_KURS."]
["Laget grunnskolerecord",null,null,"MRK_BU_GRSKOLE",1970,2023]
[]
["*Skriv ønskede årganger i første ruten for å velge obligatoriske variabler"]
["UTTREKK FRA FORLØPSTABELLEN F_UTD_KURS - \nORDINÆRT UTTREKK",null,null,null,1970,2023,null,null,"wxx_xxxx_f_utd_kurs"]
["Registreringsdato",{"$f":"IF(B39<>\"\",B39,\"\")","v":""},{"$f":"IF(C39<>\"\",C39,\"\")","v":""},"REGDATO",1970,2023]
["Hendelsekode",{"$f":"IF(B39<>\"\",B39,\"\")","v":""},{"$f":"IF(C39<>\"\",C39,\"\")","v":""},"KODE",1970,2023,"Dokumentasjon\nfor\nalle variabler i\ntabellen\nF_UTD_KURS"]
["Tillfellets tilgangsdato",{"$f":"IF(B39<>\"\",B39,\"\")","v":""},{"$f":"IF(C39<>\"\",C39,\"\")","v":""},"TILGDATO",1970,2023]
["Tilfellets avgangsdato",{"$f":"IF(B39<>\"\",B39,\"\")","v":""},{"$f":"IF(C39<>\"\",C39,\"\")","v":""},"AVGDATO",1970,2023]
["Dato som brukes til å effektivisere uttak av tverrsnitt",{"$f":"IF(B39<>\"\",B39,\"\")","v":""},{"$f":"IF(C39<>\"\",C39,\"\")","v":""},"TOMDATO",1970,2023]
["En fra-og-med dato som markerer når record er gyldig på tverrsnitt per 1/10",{"$f":"IF(B39<>\"\",B39,\"\")","v":""},{"$f":"IF(C39<>\"\",C39,\"\")","v":""},"GYLDIG_TV_FOM",1970,2023]
["Regtom (sluttdato for endringsrecord, viser varighet for den enkelte endringsrecord) ",{"$f":"IF(B39<>\"\",B39,\"\")","v":""},{"$f":"IF(C39<>\"\",C39,\"\")","v":""},"REGTOM",1970,2023]
["Hovedgruppevariabel",null,null,"HOVED",1970,2023]
["Gruppering av skoleslag",null,null,"UTD",1989,2023,null,null,null,"microdata.no"]
["Gruppering av skoleslag-datovariabel",null,null,"UTD_DATO",1989,2023]
["Utdanningens art NUS2000",null,null,"NUS2000",1970,2023,null,null,null,"microdata.no"]
["Utdanningens art NUS89",null,null,"NUS89",1970,1998]
["Klassetrinn etter NUS2000-standarden",null,null,"KLTRINN2000",1970,2023]
["Klassetrinn etter NUS2000-standarden-datovariabel",null,null,"KLTRINN2000DATO",1970,2023]
["Heltid/deltid",null,null,"HELDEL",1974,2023,null,null,null,"microdata.no"]
["Heltid/deltid-datovariabel",null,null,"HELDELDATO",1974,2023]
["Voksenopplæring",null,null,"VOKSEN",1974,2023]
["Voksenopplæring-datovariabel",null,null,"VOKSENDATO",1974,2023]
["Kildekode",null,null,"KILDE",1999,2023]
["Kildekode-datovariabel",null,null,"KILDE_DATO",1999,2023]
["Kilde for BHU-opplysninger",null,null,"KILDEBHU",1970,1998]
["Kodetype",null,null,"KODETYPE",1970,2023]
["Utfall av utdanning, omkodet",null,null,"UTFALL",1974,2023,null,null,null,"microdata.no"]
["Utfall, uomkodet",null,null,"UTFALLU",1994,2023]
["Studieland/fullføringsland",null,null,"FULLAND",1974,2023,null,null,null,"microdata.no"]
["Studieland/fullføringsland-datovariabel",null,null,"FULLANDDATO",1974,2023]
["Grunnskolepoeng",null,null,"GRUNNSKOLEPOENG",2001,2023,null,null,null,"microdata.no"]
["Studieretning/utdanningsprogram",null,null,"STUDRETN",1974,2023]
["Studieretning/utdanningsprogram-datovariabel",null,null,"STUDRETNDATO",1974,2023]
["Kurstrinn i videregående opplæring",null,null,"KURSTRIN",1984,2023]
["Kurstrinn i videregående opplæring-datovariabel",null,null,"KURSTRINDATO",1984,2023]
["Gruppering av kurstrinn i videregående opplæring",null,null,"KTRINN",1974,2023]
["Gruppering av kurstrinn i videregående opplæring-datovariabel",null,null,"KTRINNDATO",1974,2023]
["Kompetanse i videregående opplæring",null,null,"KOMP",1997,2023,null,null,null,"microdata.no"]
["Kompetanse i videregående opplæring-datovariabel",null,null,"KOMPDATO",1997,2023]
["Kombinert yrkesfag og allmennfag (TAF)",null,null,"TAF",2006,2023]
["Kombinert yrkesfag og allmennfag (TAF)-datovariabel",null,null,"TAF_DATO",2006,2023]
["Rett til videregående opplæring",null,null,"RETT",1999,2023,null,null,null,"microdata.no"]
["Støtteundervisning i morsmål",null,null,"MORSMAL",2001,2008]
["Støtteundervisning i morsmål-datovariabel",null,null,"MORSMAL_DATO",2001,2008]
["Spesialundervisning etter enkeltvedtak",null,null,"SPESUND",2001,2008]
["Spesialundervisning etter enkeltvedtak-datovariabel",null,null,"SPESUND_DATO",2001,2008]
["Særskilt norskopplæring for språklige minoriteter",null,null,"SPRAKOPP",2001,2008]
["Særskilt norskopplæring for språklige minoriteter-datovariabel",null,null,"SPRAKOPP_DATO",2001,2008]
["Årstimer for elever under Opplæringsloven",null,null,"AARTIMER",2001,2023]
["Årstimer for elever under Opplæringsloven-datovariabel",null,null,"AARTIMER_DATO",2001,2023]
["Delkursprosent for elever og lærlinger",null,null,"DELPROS",2001,2023]
["Delkursprosent for elever og lærlinger-datovariabel",null,null,"DELPROS_DATO",2001,2023]
["Elevstatus videregående utdanning",null,null,"ELEVSTATUS",2003,2023]
["Elevstatus videregående utdanning-datovariabel",null,null,"ELEVSTATUSDATO",2003,2023]
["Fagopplæringstype",null,null,"FTYPE",1997,2023]
["Fagopplæringstype-datovariabel",null,null,"FTYPE_DATO",1997,2023]
["Fagskoleutdanning",null,null,"FAGSKOLEUTD",2005,2023]
["Gruppering av høyere utdanning",null,null,"UHGRUPPE",1970,2023,null,null,null,"microdata.no"]
["Studiepoeng for grad",null,null,"STUDPOENG_GRAD",1998,2023]
["Etter- og videreutdanning og fjernundervisning",null,null,"EVUFJERN",1999,2023]
["Etter- og videreutdanning og fjernundervisning-datovariabel",null,null,"EVUFJERNDATO",1999,2023]
["Studiepoeng for eksamen",null,null,"STUDPOENG_EKS",1998,2023]
["Recordtype på avslutta (høgskole/universitet, settes ved avgang, ellers blank)",{"$f":"IF(B39<>\"\",B39,\"\")","v":""},{"$f":"IF(C39<>\"\",C39,\"\")","v":""},"RECTYPE",1998,2023]
["Med eller uten studierett",null,null,"STUDRETT",1999,2023]
["Med eller uten studierett-datovariabel",null,null,"STUDRETT_DATO",1999,2023]
["Opptakskompetanse for studenter",null,null,"REALKOMP",2001,2023,null,null,null,"microdata.no"]
["Gjentak",null,null,"GJENTAK",1999,2023]
["Skolekommune",null,null,"SKOLEKOM",1974,2023]
["Skolekommune-datovariabel",null,null,"SKOLEKOMDATO",1974,2023]
["Skolens eierforhold",null,null,"EIERF",1974,2023,null,null,null,"microdata.no"]
["Skolens eierforhold-datovariabel",null,null,"EIERFDATO",1974,2023]
["Næringskode 72",null,null,"SN72",1974,2023,null,null,null,null,"Sjekk"]
["Næringskode 72-datovariabel",null,null,"SN72DATO",1974,2023]
["Næringskode 78",null,null,"SN78",1976,1992,null,null,null,null,"Sjekk"]
["Næringskode 78-datovariabel",null,null,"SN78DATO",1976,1992]
["Næringskode 94",null,null,"SN94",1993,2008,null,null,null,null,"Sjekk"]
["Næringskode 94-datovariabel",null,null,"SN94DATO",1993,2008]
["Næringskode 2007",null,null,"SN07",2008,2023,null,null,null,null,"Sjekk"]
["Næringskode 2007-datovariabel",null,null,"SN07DATO",2008,2023]
["Løpenummer virksomhet (bedrift)",null,null,"ORGNRBED",2005,2023,null,null,null,null,null,"AVIDENTIFISERES"]
["Løpenummer virksomhet (bedrift)-datovariabel",null,null,"ORGNRBEDDATO",2005,2023]
["Løpenummer organisasjonsnummer",null,null,"ORGNR",1998,2023,null,null,null,null,null,"AVIDENTIFISERES"]
["Løpenummer organisasjonsnummer-datovariabel",null,null,"ORGNRDATO",1998,2023]
["Løpenummer identifikasjonsnummer (erstattet av organisasjonsnummer fra 1999)",null,null,"INR",1974,1998,null,null,null,null,null,"AVIDENTIFISERES"]
["Løpenummer identifikasjonsnummer (erstattet av organisasjonsnummer fra 1999)-datovariabel",null,null,"INRDATO",1974,1998]
["Merker om fnr/snr er gyldig eller ikke",null,null,"MRK_SNR_NUDB",1970,2023]
["Løpenummer for kurs",{"$f":"IF(B39<>\"\",B39,\"\")","v":""},{"$f":"IF(C39<>\"\",C39,\"\")","v":""},"LOEPENR_KURS",1970,2023,null,null,null,"microdata.no",null,"AVIDENTIFISERES. Skal matche BU_LOEPENR_KURS i F_UTD_DEMOGRAFI."]
["Videreutdanning med opptakskrav",null,null,"VIDERUTD",2007,2023]
["Utvekslingsavtale",null,null,"UTVEKSAVTALE",2012,2023]
["Utvekslingsavtale-datovariabel",null,null,"UTVEKSAVTALE_DATO",2012,2023]
["Planlagt studieprogresjon i prosent i høstsemesteret",null,null,"STUDIEPROGRESJON_H",2012,2023]
["Planlagt studieprogresjon i prosent i høstsemesteret-datovariabel",null,null,"STUDIEPROGRESJON_H_DATO",2012,2023]
["Planlagt studieprogresjon i prosent i semesteret rapportert på eksamensrecordene",null,null,"STUDIEPROGRESJON",2011,2023]
["Utvekslingsstudent",null,null,"UTVEKS",2007,2023]
["Utvekslingsstudent-datovariabel",null,null,"UTVEKS_DATO",2007,2023]
["Utvekslings- eller innvekslingsland",null,null,"UTVEKSLAND",2007,2023]
["Utvekslings- eller innvekslingsland-datovariabel",null,null,"UTVEKSLAND_DATO",2007,2023]
["Land for studiegrunnlag",null,null,"STUDGRLAND",2008,2023]
["Programområdekode",null,null,"FKURSKOD",2019,2023]
["Prøvekandidattype",null,null,"PROVEKANDTYPE",2019,2023]
["Kontraktstype",null,null,"KONTRAKTSTYPE",2019,2023]
[]
["*Skriv ønskede årganger i første ruten for å velge obligatoriske variabler"]
["UTTREKK FRA FORLØPSTABELLEN F_UTD_KURS - \nFast definert uttrekk - 1. Avsluttede utdanninger og avlagte studiepoeng",null,null,null,1970,2023,null,null,"wxx_xxxx_f_utd_avslutt"]
["Hendelsekode",{"$f":"IF(B139<>\"\",B139,\"\")","v":""},{"$f":"IF(C139<>\"\",C139,\"\")","v":""},"KODE",1970,2023,"Dokumentasjon\nfor\nalle variabler i\ntabellen\nF_UTD_KURS"]
["Tilfellets avgangsdato",{"$f":"IF(B139<>\"\",B139,\"\")","v":""},{"$f":"IF(C139<>\"\",C139,\"\")","v":""},"AVGDATO",1970,2023]
["Utdanningens art NUS2000",{"$f":"IF(B139<>\"\",B139,\"\")","v":""},{"$f":"IF(C139<>\"\",C139,\"\")","v":""},"NUS2000",1970,2023,null,null,null,"microdata.no"]
["Utfall av utdanning, omkodet",{"$f":"IF(B139<>\"\",B139,\"\")","v":""},{"$f":"IF(C139<>\"\",C139,\"\")","v":""},"UTFALL",1974,2023,null,null,null,"microdata.no"]
["Studiepoeng for eksamen",{"$f":"IF(B139<>\"\",B139,\"\")","v":""},{"$f":"IF(C139<>\"\",C139,\"\")","v":""},"STUDPOENG_EKS",1998,2023]
["Recordtype på avslutta (høgskole/universitet, settes ved avgang, ellers blank)",{"$f":"IF(B139<>\"\",B139,\"\")","v":""},{"$f":"IF(C139<>\"\",C139,\"\")","v":""},"RECTYPE",1998,2023]
[]
["*Skriv ønskede årganger i første ruten for å velge obligatoriske variabler"]
["UTTREKK FRA FORLØPSTABELLEN F_UTD_KURS - \nFast definert uttrekk - 2. Gjennomføring (status 1.10. og viktigste avslutning per år)",null,null,null,1970,2023,"Dokumentasjon\nfor\nalle variabler i\ntabellen\nF_UTD_KURS",null,"wxx_xxxx_gjennomf_igang\nwxx_xxxx_gjennom_avsl"]
["Utdanningens art NUS2000",{"$f":"IF(B148<>\"\",B148,\"\")","v":""},{"$f":"IF(C148<>\"\",C148,\"\")","v":""},"NUS2000",1970,2023,null,null,null,"microdata.no"]
["Utfall av utdanning, omkodet",{"$f":"IF(B148<>\"\",B148,\"\")","v":""},{"$f":"IF(C148<>\"\",C148,\"\")","v":""},"UTFALL",1974,2023,null,null,null,"microdata.no"]
["Kompetanse i videregående opplæring",{"$f":"IF(B148<>\"\",B148,\"\")","v":""},{"$f":"IF(C148<>\"\",C148,\"\")","v":""},"KOMP",1997,2023,null,null,null,"microdata.no"]
[]
["*Skriv ønskede årganger i første ruten for å velge obligatoriske variabler"]
["VIKTIGSTE KURS. FORLØP MED MÅNEDLIG DATERING \n(F_UTD_PERSON)",null,null,null,1974,2023,null,null,"wxx_xxxx_f_utd_person"]
["Registreringsdato",{"$f":"IF(B154<>\"\",B154,\"\")","v":""},{"$f":"IF(C154<>\"\",C154,\"\")","v":""},"REGDATO",1974,2023,"Dokumentasjon\nfor\nalle variabler i\ntabellen\nF_UTD_PERSON"]
["Studiekode",{"$f":"IF(B154<>\"\",B154,\"\")","v":""},{"$f":"IF(C154<>\"\",C154,\"\")","v":""},"STUDIEKODE",1974,2023]
["Hendelseskode",{"$f":"IF(B154<>\"\",B154,\"\")","v":""},{"$f":"IF(C154<>\"\",C154,\"\")","v":""},"KODE",1974,2023]
["Tilfellets tilgangsdato",{"$f":"IF(B154<>\"\",B154,\"\")","v":""},{"$f":"IF(C154<>\"\",C154,\"\")","v":""},"TILGDATO",1974,2023]
["Tilfellets avgangsdato",{"$f":"IF(B154<>\"\",B154,\"\")","v":""},{"$f":"IF(C154<>\"\",C154,\"\")","v":""},"AVGDATO",1974,2023]
["Tilgangsdato for hovedgruppen",{"$f":"IF(B154<>\"\",B154,\"\")","v":""},{"$f":"IF(C154<>\"\",C154,\"\")","v":""},"UTDTILG",1974,2023]
["Avgangsdato for hovedgruppen",{"$f":"IF(B154<>\"\",B154,\"\")","v":""},{"$f":"IF(C154<>\"\",C154,\"\")","v":""},"UTDAVG",1974,2023]
["Tilgangsdato for studiet",{"$f":"IF(B154<>\"\",B154,\"\")","v":""},{"$f":"IF(C154<>\"\",C154,\"\")","v":""},"STUDTILG",1974,2023]
["Avgangsdato for studiet",{"$f":"IF(B154<>\"\",B154,\"\")","v":""},{"$f":"IF(C154<>\"\",C154,\"\")","v":""},"STUDAVG",1974,2023]
["Utfall, omkodet",null,null,"UTFALL",1974,2023]
["Fagopplæringstype",null,null,"FTYPE",1997,2023]
["Utdanningens art NUS2000 for fag i semesteret (ikke studiemål)",null,null,"NUS2000",1970,2023]
["Utdanningens art NUS2000 for fag i semesteret (ikke studiemål)-datovariabel",null,null,"NUS2000DATO",1974,2023]
["SSBs studieretningskode",null,null,"STUDRETN",1974,2023]
["SSBs studieretningskode-datovariabel",null,null,"STUDRETNDATO",1974,2023]
["Kompetanse i videregående opplæring",null,null,"KOMP",1997,2023]
["Kompetanse i videregående opplæring-datovariabel",null,null,"KOMPDATO",1997,2023]
["Antall semester registrert i utdanning",null,null,"SEMESTER_I_UTD",1974,2023]
["Antall semester registrert i utdanning-datovariabel",null,null,"SEMESTER_I_UTD_DATO",1974,2023]
["Antall semester i videregående utdanning",null,null,"SEMESTER_I_VUTD",1974,2023]
["Antall semester i videregående utdanning-datovariabel",null,null,"SEMESTER_I_VUTD_DATO",1974,2023]
["Antall semester i videregående utdanning under lov om videregående opplæring/opplæringsloven",null,null,"SEMESTER_I_VUTD_LOV",1974,2023]
["Antall semester i videregående utdanning under lov om videregående opplæring/opplæringsloven-datovariabel",null,null,"SEMESTER_I_VUTD_LOV_DATO",1974,2023]
["Antall semester i høyere utdanning ",null,null,"SEMESTER_I_HOY_UTD",1974,2023]
["Antall semester i høyere utdanning-datovariabel",null,null,"SEMESTER_I_HOY_UTD_DATO",1974,2023]
["Antall semester i videregående utdanning i utlandet",null,null,"SEMESTER_I_UTL_VUTD",1986,2023]
["Antall semester i videregående utdanning i utlandet-datovariabel",null,null,"SEMESTER_I_UTL_VUTD_DATO",1986,2023]
["Antall semester i høyere utdanning i utlandet",null,null,"SEMESTER_I_UTL_HOY",1986,2023]
["Antall semester i høyere utdanning i utlandet-datovariabel",null,null,"SEMESTER_I_UTL_HOY_DATO",1986,2023]
["Utdannelse i utlandet",null,null,"UTLAND",1986,2023]
["Utdannelse i utlandet-datovariabel",null,null,"UTLANDDATO",1986,2023]
["REGTOM (viser varighet for den enkelte endringsrecord)",{"$f":"IF(B154<>\"\",B154,\"\")","v":""},{"$f":"IF(C154<>\"\",C154,\"\")","v":""},"REGTOM",1974,2023]
[]
[]
["FASTE VARIABLE PÅ PERSONNIVÅ \n(utdanningsopplysningene gjelder utdanninger fullført etter 1974)\n(TAB_UTD_PERSON)","*SKRIV SISTE TILGJENGELIGE ÅRGANG FOR Å VELGE VARIABLER",null,null,null,null,null,null,"wxx_xxxx_tab_person"]
["Foreldrenes utd.nivå da personen var 16 år",null,null,"SOSBAK","FASTE OPPLYSNINGER: OPPDATERT PER 01.10.2023",null,"Dokumentasjon\nfor\nalle variabler i\ntabellen\nTAB_UTD_PERSON",null,null,"microdata.no"]
["Fars høyeste utdanning da personen var 16 år",null,null,"NUS2000_FAR_16",null,null,null,null,null,"microdata.no"]
["Mors høyeste utdanning da personen var 16 år",null,null,"NUS2000_MOR_16",null,null,null,null,null,"microdata.no"]
["Bostedskommune ved fylte 16 år",null,null,"KOMM_16",null,null,null,null,null,"microdata.no"]
["Årstall første gang fullført utdanning på grunnskolenivå",null,null,"AAR_FORSTE_FULLF_GS",null,null,null,null,null,"microdata.no"]
["År og måned første gang fullført tre-årig videregående-skole-nivå",null,null,"AAR_FORSTE_FULLF_VS",null,null,null,null,null,"microdata.no"]
["År og måned første gang fullført tre-årig utdanning under lov om videregående opplæring/opplæringsloven",null,null,"AAR_FORSTE_FULLF_VS_LOV",null,null,null,null,null,"microdata.no"]
["År og måned første gang fullført tre-årig utdanning på videregående-skole-nivå, allmennfag",null,null,"AAR_FORSTE_FULLF_VSA",null,null,null,null,null,"microdata.no"]
["År og måned første gang fullført tre-årig utdanning under lov om videregående opplæring, allmennfag",null,null,"AAR_FORSTE_FULLF_VSA_LOV",null,null,null,null,null,"microdata.no"]
["År og måned første gang fullført tre-årig utdanning på videregående-skole-nivå, yrkesfag",null,null,"AAR_FORSTE_FULLF_VSY",null,null,null,null,null,"microdata.no"]
["År og måned første gang fullført tre-årig utdanning under lov om videregående opplæring, yrkesfag",null,null,"AAR_FORSTE_FULLF_VSY_LOV",null,null,null,null,null,"microdata.no"]
["År og måned første gang fullført høyskolekandidat eller tilsvarende",null,null,"AAR_FORSTE_FULLF_HOY",null,null,null,null,null,"microdata.no"]
["År og måned første gang fullført cand.mag. eller tilsvarende",null,null,"AAR_FORSTE_FULLF_CMG",null,null,null,null,null,"microdata.no"]
["År og måned første gang fullført bachelor",null,null,"AAR_FORSTE_FULLF_BACH",null,null,null,null,null,"microdata.no"]
["År og måned første gang fullført hovedfagsnivå/master",null,null,"AAR_FORSTE_FULLF_HOV",null,null,null,null,null,"microdata.no"]
["År og måned første gang fullført doktorgrad",null,null,"AAR_FORSTE_FULLF_DOK",null,null,null,null,null,"microdata.no"]
["Antall semester registrert i videregående utd. før første fullførte 3-årige videregående utdanning.",null,null,"SEMESTER_FFF_VS",null,null,null,null,null,"microdata.no"]
["Antall semester registrert i utd. under lov om vid. oppl. før første fullførte 3-årige under loven.",null,null,"SEMESTER_FFF_VS_LOV",null,null,null,null,null,"microdata.no"]
["Antall semester registrert i videregående utdanning før første fullføring, allmennfag.",null,null,"SEMESTER_FFF_VSA",null,null,null,null,null,"microdata.no"]
["Antall semester registrert i vid. utd. under loven før første fullført 3-årig under loven, allmennfag.",null,null,"SEMESTER_FFF_VSA_LOV",null,null,null,null,null,"microdata.no"]
["Antall semester registrert i vid. utd. før første fullført 3-årig vid. utd., yrkesfag.",null,null,"SEMESTER_FFF_VSY",null,null,null,null,null,"microdata.no"]
["Antall semester reg. under lov om vid. oppl. før første fullført 3-årig utd.under loven, yrkesfag.",null,null,"SEMESTER_FFF_VSY_LOV",null,null,null,null,null,"microdata.no"]
["Antall semester registrert i høyere utdanning før første gang fullført høgskole eller tilsvarende.",null,null,"SEMESTER_FFF_HOY",null,null,null,null,null,"microdata.no"]
["Antall semester registrert i høyere utdanning før første gang fullført bachelor",null,null,"SEMESTER_FFF_BACH",null,null,null,null,null,"microdata.no"]
["Antall semester registrert i høyere utdanning før første gang fullført cand.mag. eller tilsvarende.",null,null,"SEMESTER_FFF_CMG",null,null,null,null,null,"microdata.no"]
["Antall semester registrert i høyere utdanning før første gang fullført hovedfagsnivå",null,null,"SEMESTER_FFF_HOV",null,null,null,null,null,"microdata.no"]
["Antall semester registrert i høyere utdanning før første gang fullført doktorgrad.",null,null,"SEMESTER_FFF_DOK",null,null,null,null,null,"microdata.no"]
["Antall semester registrert i utdanning utover ordinær grunnskole før første fullførte 3-årig vid.",null,null,"SEMESTER_TOT_FFF_VS"]
["Antall semester reg. i utd. utover ordinær grunnskole før første fullførte 3-årig utd. under loven.",null,null,"SEMESTER_TOT_FFF_VS_LOV"]
["Antall semester registrert i utdanning utover ordinær grunnskole før første fullføring, allmennfag.",null,null,"SEMESTER_TOT_FFF_VSA"]
["Antall semester reg. i utd. utover ordinær grunnskole før første fullføring under loven, allmennfag.",null,null,"SEMESTER_TOT_FFF_VSA_LOV"]
["Antall semester reg. i utd. utover ordinær grunnskole før første fullført 3-årig, yrkesfag.",null,null,"SEMETER_TOT_FFF_VSY"]
["Antall semester reg. i utd. utover ordinær grunnskole før første fullf. 3-årig under loven, yrkesfag.",null,null,"SEMESTER_TOT_FFF_VSY_LOV"]
["Antall semester registrert i utdanning utover ordinær grunnskole før første gang fullført bachelor.",null,null,"SEMESTER_TOT_FFF_BACH"]
["Antall semester utover ordinær grunnskole før første fullført høgskole eller tilsvarende.",null,null,"SEMESTER_TOT_FFF_HOY"]
["Antall semester registrert i utdanning utover ordinær grunnskole før første gang fullført cand.mag.",null,null,"SEMESTER_TOT_FFF_CMG"]
["Antall semester registrert i utd. utover ordinær grunnskole før første gang fullført hovedfagsnivå/master",null,null,"SEMESTER_TOT_FFF_HOV"]
["Antall semester registrert i utdanning utover ordinær grunnskole før første gang fullført doktorgrad.",null,null,"SEMESTER_TOT_FFF_DOK"]
["År og måned første gang registrert i videregående utdanning",null,null,"AAR_NY_I_VID_UTD",null,null,null,null,null,"microdata.no"]
["År og måned første gang registrert i videregående utdanning under lov om vid.opplæring/opplæringsloven.",null,null,"AAR_NY_I_VID_UTD_LOV",null,null,null,null,null,"microdata.no"]
["År og måned første gang registrert i høyere utdanning (ny student)",null,null,"AAR_FORSTE_REG_UH",null,null,null,null,null,"microdata.no"]
["År og måned første gang registrert i hovedfag/master",null,null,"AAR_FORSTE_REG_HOV",null,null,null,null,null,"microdata.no"]
["Alder ved utgangen av det kalenderåret personen første gang er reg. i høyere utdanning (ny student).",null,null,"ALDER_FORSTE_REG_UH",null,null,null,null,null,"microdata.no"]
[]
["*Skriv ønskede årganger i første ruten for å velge obligatoriske variabler"]
["UTVEKSLINGSSTUDENTER (TAB_UTVEKSL_STUD)",null,null,null,2012,2023,null,null,"wxx_xxxx_tab_utveksl"]
["Skoleåret opplysningene er meldt",{"$f":"IF(B235<>\"\",B235,\"\")","v":""},{"$f":"IF(C235<>\"\",C235,\"\")","v":""},"SKOLEAAR",2012,2023,null,null,null,"microdata.no"]
["Utvekslings-/innvekslingsstudent",null,null,"UTVEKS",2012,2023,null,null,null,"microdata.no"]
["Utvekslings-/innvekslingsland",null,null,"UTVEKSLAND",2012,2023,null,null,null,"microdata.no"]
["Universitet/høgskolekode i Norge",null,null,"INSTINR",2012,2023]
["Studieprogram",null,null,"STUDIEPROGRAM",2012,2023]
["Utvekslingsinstitusjon",null,null,"UTVEKS_INST",2012,2023]
["Utvekslingsavtale",null,null,"UTVEKSAVTALE",2012,2023,null,null,null,"microdata.no"]
["Dato for start på utveksling/innveksling",null,null,"UTVEKS_FRADATO",2012,2023]
["Dato for avslutning på utveksling/innveksling",null,null,"UTVEKS_TILDATO",2012,2023]
[]
["*Skriv ønskede årganger i første ruten for å velge obligatoriske variabler"]
["KARAKTERER FOR AVSLUTTET GRUNNSKOLE (TAB_KARAKTER_GRUNNSKOLE)",null,null,null,2002,2023,null,null,"wxx_xxxx_tab_kar_grs"]
["Løpenummer organisasjonsnummer",null,null,"ORGNR",2002,2023,"Dokumentasjon\nfor\nalle variabler i\ntabellen\nTAB_KARAKTER_GRUNNSKOLE"]
["Skolekommune",null,null,"SKOLEKOM",2002,2023]
["Fagkode for fag i grunnskole",{"$f":"IF(B247<>\"\",B247,\"\")","v":""},{"$f":"IF(C247<>\"\",C247,\"\")","v":""},"FAGKODE",2002,2023,null,null,null,"microdata.no"]
["Terminkarakter, første termin",null,null,"TERMIN1",2002,2023,null,null,null,null,"Privat / beskyttelsesverdig"]
["Terminkarakter, andre termin",null,null,"TERMIN2",2002,2023,null,null,null,null,"Privat / beskyttelsesverdig"]
["Standpunktkarakter",null,null,"STP",2002,2023,null,null,null,"microdata.no","Privat / beskyttelsesverdig"]
["Skriftlig eksamenskarakter",null,null,"SKR",2002,2023,null,null,null,null,"Privat / beskyttelsesverdig"]
["Muntlig eksamenskarakter",null,null,"MUN",2002,2023,null,null,null,null,"Privat / beskyttelsesverdig"]
["Avslutningsdato for grunnskolen",{"$f":"IF(B247<>\"\",B247,\"\")","v":""},{"$f":"IF(C247<>\"\",C247,\"\")","v":""},"AVGDATO",2002,2023]
[]
["*Skriv ønskede årganger i første ruten for å velge obligatoriske variabler"]
["VITNEMÅL FRA VIDEREGÅENDE UTDANNING. DATA FRA NASJONAL VITNEMÅLSDATABASE (NVB) (TAB_VITNEMAL_VGSKOLE)",null,null,null,2000,2023,null,null,"wxx_xxxx_vitnemal_vg"]
["Vitnemålsnummer (Løpenummer for vitnemål - nøkkel for kobling til TAB_VITNEMÅLFAG_VGSKOLE)",{"$f":"IF(B259<>\"\",B259,\"\")","v":""},{"$f":"IF(C259<>\"\",C259,\"\")","v":""},"VITNR",2000,2023,"Dokumentasjon\nfor\nalle variabler i\ntabellen\nTAB_VITNEMÅL_VGSKOLE"]
["Primærvitnemål",null,null,"PRIMAER",2000,2023]
["Kurskode for 1. år (UFD-kode)",null,null,"KURSKODE1",2000,2023]
["Studieretning 1. år (LINDA-kode)",null,null,"STUDRETN1",2000,2023]
["NUS-kode for 1. år",null,null,"NUS2000_1",2000,2023]
["Klassetrinn 1. år. SSB",null,null,"KLTRINN_1",2000,2023]
["Studieretning 1. år. SSB",null,null,"STUDRETN_1",2000,2023]
["Kurstrinn 1. år. Detaljert kurstrinn",null,null,"KURSTRIN_1",2000,2023]
["Kompetanse i videregående",null,null,"KOMP_1",2000,2023]
["Kurstrinn 1. år, gruppert",null,null,"KTRINN_1",2000,2023]
["Kurskode-2-linje (VK1) UFD-kodeverk",null,null,"KURSKODE2",2000,2023]
["Studieretning 2. år, detaljert",null,null,"STUDRETN2",2000,2023]
["NUS-kode 2. år. SSB",null,null,"NUS2000_2",2000,2023]
["Klassetrinn, 2. året. SSB",null,null,"KLTRINN_2",2000,2023]
["Studieretning, detaljert",null,null,"STUDRETN_2",2000,2023]
["Kurstrinn, 2. året, detaljert",null,null,"KURSTRIN_2",2000,2023]
["Kompetanse i videregående, 2. året. SSB",null,null,"KOMP_2",2000,2023]
["Kurstrinn 2. året, gruppert. SSB",null,null,"KTRINN_2",2000,2023]
["Kurskode-3-linje (VK11) UFD kodeverk",null,null,"KURSKODE3",2000,2023]
["Studieretning, 3. år (LINDA-kodeverk )",null,null,"STUDRETN3",2000,2023]
["NUS-kode 3. år",null,null,"NUS2000_3",2000,2023]
["Klassetrinn, 3. år",null,null,"KLTRINN_3",2000,2023]
["Studieretning, 3. år",null,null,"STUDRETN_3",2000,2023]
["Kurstrinn, 3. år",null,null,"KURSTRIN_3",2000,2023]
["Kompetanse i videregående, 3. år",null,null,"KOMP_3",2000,2023]
["Kurstrinn, gruppert, 3. år",null,null,"KTRINN_3",2000,2023]
["Kurskode-3-linje (VK11) UFD kodeverk (Påbygg fag for studiekompetanse)",null,null,"kurskode3b",2015,2023]
["Studieretning, 3. år (LINDA-kodeverk ) (Påbygg fag for studiekompetanse)",null,null,"studretn3b",2015,2023]
["NUS-kode 3. år (Påbygg fag for studiekompetanse)",null,null,"nus2000_3b ",2015,2023]
["Klassetrinn, 3. år (Påbygg fag for studiekompetanse)",null,null,"kltrinn_3b ",2015,2023]
["Studieretning, 3. år (Påbygg fag for studiekompetanse)",null,null,"studretn_3b ",2015,2023]
["Kurstrinn, 3. år (Påbygg fag for studiekompetanse)",null,null,"kurstrin_3b ",2015,2023]
["Kompetanse i videregående, 3. år (Påbygg fag for studiekompetanse)",null,null,"komp_3b ",2015,2023]
["Kurstrinn, gruppert, 3. år (Påbygg fag for studiekompetanse)",null,null,"ktrinn_3b ",2015,2023]
["Avgangsår",{"$f":"IF(B259<>\"\",B259,\"\")","v":""},{"$f":"IF(C259<>\"\",C259,\"\")","v":""},"AVGANG",2000,2023]
["Vitnemålstatus (vitm ikke fyller kravene til bestått vtm)",null,null,"VITSTAT",2000,2023]
["Angir om vitnemålet gir generell studiekompetanse",null,null,"GSKOMP",2000,2023]
["Fravær-dager år 1 (Antall dager 1. året)",null,null,"FRADAG1",2000,2023,null,null,null,null,"Privat / beskyttelsesverdig"]
["Fravær-timer år 1 (Antall timer 1. året)",null,null,"FRATIMER1",2000,2023,null,null,null,null,"Privat / beskyttelsesverdig"]
["Fravær-dager år 2 (Antall dager 2. året)",null,null,"FRADAG2",2000,2023,null,null,null,null,"Privat / beskyttelsesverdig"]
["Fravær-timer år 2 (Antall timer 2. året)",null,null,"FRATIMER2",2000,2023,null,null,null,null,"Privat / beskyttelsesverdig"]
["Fravær-dager år 3 (Antall dager 3. året)",null,null,"FRADAG3",2000,2023,null,null,null,null,"Privat / beskyttelsesverdig"]
["Fravær-timer år 3 (Antall timer 3. året)",null,null,"FRATIMER3",2000,2023,null,null,null,null,"Privat / beskyttelsesverdig"]
["Fravær-dager år 3 (Antall dager 3. året) (Påbygg fag for studiekompetanse)",null,null,"fradag3b",2015,2023,null,null,null,null,"Privat / beskyttelsesverdig"]
["Fravær-timer år 3 (Antall timer 3. året) (Påbygg fag for studiekompetanse)",null,null,"fratimer3b",2015,2023,null,null,null,null,"Privat / beskyttelsesverdig"]
["Utstedelssedato (når vtm ble skrevet ut)",null,null,"UTDATO",2000,2023]
["Løpenummer utstederskolens organisasjonsnummer",null,null,"ORGNR",2000,2023]
["Skolekommune",null,null,"SKOLEKOM",2000,2023]
["Skolens eierforhold",null,null,"EIERF",2000,2023]
["Tilleggskontroll av studiekompetanse",null,null,"GSK_BEREGNET ",2018,2018]
[]
["*Skriv ønskede årganger i første ruten for å velge obligatoriske variabler"]
["FAG FRA VIDEREGÅENDE UTDANNING. DATA FRA NASJONAL VITNEMÅLSDATABASE (NVB) (TAB_VITNEMALFAG_VGSKOLE)",null,null,null,2000,2023,null,null,"wxx_xxxx_vitnemalfag_vg"]
["Vitnemålsnummer (Løpenummer for vitnemål - nøkkel for kobling til TAB_VITNEMÅL_VGSKOLE)",{"$f":"IF(B312<>\"\",B312,\"\")","v":""},{"$f":"IF(C312<>\"\",C312,\"\")","v":""},"VITNR",2000,2023,"Dokumentasjon\nfor\nalle variabler i\ntabellen\nTAB_VITNEMÅLFAG_VGSKOLE"]
["Fagkode",{"$f":"IF(B312<>\"\",B312,\"\")","v":""},{"$f":"IF(C312<>\"\",C312,\"\")","v":""},"FAGKODE",2000,2023]
["Fagets omfang - uketimer",null,null,"OMFANG",2000,2023]
["Standpunktkarakter",null,null,"STANDKAR",2000,2023,null,null,null,null,"Privat / beskyttelsesverdig"]
["Eksamenskarakter",null,null,"EKSKAR",2000,2023,null,null,null,null,"Privat / beskyttelsesverdig"]
["Prøveform",null,null,"PFORM",2000,2023]
["Eksamensår",null,null,"EKSAR",2000,2023]
["Fordypningsfag",null,null,"FORDYPF",2000,2023]
["Løpenummer organisasjonsnummer",null,null,"ORGNR",2000,2023]
[]
["*Skriv ønskede årganger i første ruten for å velge obligatoriske variabler"]
["FAG MED KARAKTERER FOR ALLE NIVÅER I VIDEREGÅENDE (TAB_KARAKTER_VGSKOLE)",null,null,null,2004,2023,null,null,"wxx_xxxx_tab_kar_vg"]
["Skoleår",{"$f":"IF(B324<>\"\",B324,\"\")","v":""},{"$f":"IF(C324<>\"\",C324,\"\")","v":""},"SKOLEAR",2004,2023,"Dokumentasjon\nfor\nalle variabler i\ntabellen\nTAB_KARAKTER_VGSKOLE"]
["Løpenummer organisasjonsnummer",null,null,"ORGNR",2005,2023]
["Videregåendepoeng",null,null,"VIDEREGAENDEPOENG",2006,2023]
["Fagkode",{"$f":"IF(B324<>\"\",B324,\"\")","v":""},{"$f":"IF(C324<>\"\",C324,\"\")","v":""},"FAGKODE",2004,2023,null,null,null,"microdata.no"]
["Karakter i muntlig",null,null,"MUN",2004,2023,null,null,null,null,"Privat / beskyttelsesverdig"]
["Karakter i skriftlig",null,null,"SKR",2004,2023,null,null,null,null,"Privat / beskyttelsesverdig"]
["Standpunktkarakter",null,null,"STP",2004,2023,null,null,null,"microdata.no","Privat / beskyttelsesverdig"]
["Karakter i 1. termin",null,null,"TERMIN1",2004,2023,null,null,null,null,"Privat / beskyttelsesverdig"]
["Karakter i 2. termin",null,null,"TERMIN2",2004,2023,null,null,null,null,"Privat / beskyttelsesverdig"]
["Annen karakter",null,null,"KAR_ANNEN",2010,2023,null,null,null,null,"Privat / beskyttelsesverdig"]
["Fagstatus",null,null,"FAGSTATUS",2008,2023]
[]
["*Skriv ønskede årganger i første ruten for å velge obligatoriske variabler"]
["NASJONALE PRØVER (TAB_NASJONALE_PRØVER) - årgang refererer til starten av skoleåret (2016 = 2016/2017)",null,null,null,2007,2023,null,null,"wxx_xxxx_nasjonale_prover"]
["Årgang",{"$f":"IF(B338<>\"\",B338,\"\")","v":""},{"$f":"IF(C338<>\"\",C338,\"\")","v":""},"AARGANG",2007,2023,"Dokumentasjon\nfor\nalle variabler i\ntabellen\nTAB_NASJONALE_PROVER"]
["Løpenummer organisasjonsnummer",null,null,"ORGNR",2007,2023]
["Løpenummer organisasjonsnummer virksomhet (bedrift)",null,null,"ORGNRBED",2007,2023]
["Skolekommune",null,null,"SKOLEKOM",2007,2023]
["Skolens eierforhold",null,null,"SKOLETYPE",2007,2023,null,null,null,"microdata.no"]
["Løpenummer forrige års skoles organisasjonsnummer",null,null,"AVGIVERSKOLE_ORGNR",2008,2023]
["Løpenummer forrige års skoles organisasjonsnummer virksomhet (bedrift)",null,null,"AVGIVERSKOLE_ORGNRBED",2008,2023]
["Deltagerstatus",null,null,"DELTATTSTATUS",2007,2023]
["Prøvekode",{"$f":"IF(B338<>\"\",B338,\"\")","v":""},{"$f":"IF(C338<>\"\",C338,\"\")","v":""},"PROVE",2007,2023]
["Oppgavesett",null,null,"OPPGAVESETT",2016,2016]
["Mestringsnivå",null,null,"MESTRINGSNIVAA",2007,2023,null,null,null,null,"Privat / beskyttelsesverdig"]
["Poeng",null,null,"POENG",2007,2023,null,null,null,null,"Privat / beskyttelsesverdig"]
["Andel poeng",null,null,"ANDELPOENG",2010,2010,null,null,null,null,"Privat / beskyttelsesverdig"]
["Skalapoeng",null,null,"SKALAPOENG",2014,2023,null,null,null,"microdata.no","Privat / beskyttelsesverdig"]
[]
[{"$f":"'Variabelliste - informasjon'!A39","v":"Sist oppdatert 24. juni 2024"},null,null,"Statistisk sentralbyrå"]

{"sheet":"Merknader","index":2,"n_rows":41,"n_cols":5,"rows_kept":41,"cut":false,"hidden":false,"merged":[[21,0,22,0],[26,0,29,0]]}
["Sist opppdatert 06.04.2018"]
[]
["Generelle merknader og nyttig informasjon for utfylling av variabellista:"]
[]
["Om obligatoriske variabler"]
["Det er valgt ut enkelte variabler fra de fleste tabellene som regnes som obligatoriske og krysses av automatisk fordi vi mener disse er viktige for at uttrekket skal gi mening. Dette er gjort som et hjelpemiddel for forskere slik at man unngår at variabler som ofte trengs utelates fra en bestilling. Hvilke variabler som trengs i tillegg til disse vil variere fra prosjekt til prosjekt, og forsker må derfor krysse av for de han/hun trenger."]
[]
[]
[]
["Angående tidsavgrensninger",null,"Tabell","Tidsavgrensningsvariabel","Merknad"]
[" - Generelt løper en årgang fra 1.10. - 30.9 dersom ikke annet fremkommer i tabelloversikten. For eksempel vil årgang 2000 tilsvare fra og med 199910 til og med 200009. Dersom annen referanseperiode/definisjon av årganger ønskes må dette spesifiseres under kommentarer på arket \"Variabelliste- informasjon\". Vi gjør oppmerksom på at enkelte opplysninger i databasen er tilpasset å være riktig per 1.10.",null,"F_UTD_DEMOGRAFI","BU_REGDATO"]
[" - Årlige situasjonsopplysninger er per 1.10.åååå.",null,"F_UTD_KURS, fast uttrekk-Avsluttede utdanninger …","AVGDATO"]
[" - Hver variabel lånes ut for de tilgjengelige årgangene i perioden du oppgir for tabellen.",null,"F_UTD_KURS, fast uttrekk- Gjennomføring ...","Avhenger av bestilling"]
[" - Tabellene har faste variabler tidsavgrensningen gjøres etter. Hvilke variabler tidsavgrensningen gjøres etter kan du se i tabellen til høyre. Dersom annen tidsavgrensning gjøres vil du få beskjed. Dersom du ønsker at tidsavgrensning skal gjøres etter en annen av variablene i tabellen må dette spesifiseres under kommentarer på arket \"Variabelliste- informasjon\". ",null,"F_UTD_KURS, ordinært uttrekk","Avhenger av bestilling"]
[null,null,"F_UTD_PERSON","Avhenger av bestilling"]
[null,null,"TAB_UTD_PERSON","-","Tabellen er oppdatert per 1.10.åååå, der åååå er nyeste årgang databasen er oppdatert for."]
[null,null,"TAB_UTVEKSL_STUD","SKOLEAAR"]
[null,null,"TAB_KARAKTER_GRUNNSKOLE","AVGDATO"]
["Om ulike typer uttrekk fra tabellen F_UTD_KURS",null,"TAB_VITNEMÅL_VGSKOLE","AVGANG"]
["1 Ordinært uttrekk: Et ordinært uttrekk er et uttrekk fra forløpsfila akkurat slik den er, med variabler som er spesifisert etter bestilling.",null,"TAB_VITNEMÅLFAG_VGSKOLE","AVGANG","Denne variabelen ligger i tabellen TAB_VITNEMÅL_VGSKOLE som følger med som obligatorisk til TAB_VITNEMÅLFAG_VGSKOLE."]
["2 Fast definerte uttrekk",null,"TAB_KARAKTER_VGSKOLE","SKOLEAR"]
["Dette er to faste \"pakker\" vi tilbyr. Disse uttrekkene består av forhåndsdefinerte variabler i F_UTD_KURS, og kun enkelte av recordene(radene). Du kan lese     mer om disse under.",null,"TAB_NASJONALE_PRØVER","AARGANG","AARGANG henviser til første kalenderår i skoleåret."]
[]
["a. Avsluttede utdanninger"]
["Dette gir et uttrekk av bestemte variabler fra forløpsfilen F_UTD_KURS og inkluderer kun recorder (rader) for avsluttede utdanninger (KODE=0)."]
["b. Gjennomføring"]
["Gjennomføringsdata følger en gitt populasjon over en bestemt periode, for eksempel 5 eller 7 år.\nTilpasset uttrekk med gjennomføring inneholder informasjon om igangværende utdanning samt «viktigste» avsluttede utdanning per september(1.10) for hvert    år datasettet dekker. År ÅÅÅÅ går fra 10.(ÅÅÅÅ-1) tom. 09.ÅÅÅÅ.                                                                                                                                                 \nEtter at uttrekket er gjort sitter man igjen med paneldata, dvs at vi har en record for hver hendelse, hvor den ene variabelen er en tidsangivelse, for eksempel      år, og de andre er status det året. Dvs at hver person kan ha flere recorder. Før utlevering transponeres fila.\nAt datafilen transponeres eller «snus», innebærer at hvert individ kun får en record (dvs rad) i filen. I praksis betyr dette at det blir en variabel for hvert år og             hver variabel som inngår, for eksempel vil variabelen nus2000 for perioden 2001-2003 bli nus2000_2001, nus2000_2002, nus2000_2003, og disse tre vil inngå i fila. Dette gir fort veldig mange variabler.\n"," "]
[]
[]
[]
[]
["Uttrekk fra følgende tabeller fra NUDB leveres med fagkatalog:"]
["Fagkatalogen er en oversikt over hvilke utdanningskoder som tilhører hvilke fag, samt noe informasjon om fagene (slik som fagtype og årstimer)."]
[" - KARAKTERER FOR AVSLUTTET GRUNNSKOLE (TAB_KARAKTER_GRUNNSKOLE)"]
[" - VITNEMÅL FRA VIDEREGÅENDE UTDANNING. DATA FRA NASJONAL VITNEMÅLSDATABASE (NVB) (TAB_VITNEMAL_VGSKOLE)"]
[" - FAG FRA VIDEREGÅENDE UTDANNING. DATA FRA NASJONAL VITNEMÅLSDATABASE (NVB) (TAB_VITNEMALFAG_VGSKOLE)"]
[" - FAG MED KARAKTERER FOR ALLE NIVÅER I VIDEREGÅENDE (TAB_KARAKTER_VGSKOLE)"]
[]
["Annen nyttig informasjon"]
[" - BU: Utdanningsnivå omfatter alle personer med utdanningsnivå i NUDB, uavhengig av nåværende bosettingsstatus."]
[" - Faste opplysninger i TAB_UTD_PERSON: Utdanningsopplysningene gjelder utdanninger fullført etter 1974."]